Cogmind - Beta 15 @@@ ROGUE MODE // 2025.07.16 @ 17:17:05 Player: BlobtheGreat Result: Destroyed by ZS-HUB(R) with Subdweller Beam Cannon Performance ------------- Evolutions (0) 0 Regions Visited (2) 400 Robots Destroyed (15) 75 Value Destroyed (274) 274 Prototype IDs (2) 40 Alien Tech Used (0) 0 Bonus (-22) -22 TOTAL SCORE: 767 Bonus ------- Friendly Fire -22 Cogmind --------- Core Integrity 0/250 Matter 243/300 Energy 10/100 System Corruption 1% Temperature Cool (9) Movement Core (400) Ox7 Location -10/Subcaves Parts ------- > --- POWER (1) -------- (None) > --- PROPULSION (2) --- (None) > --- UTILITY (2) ------ Large Storage Unit > --- WEAPON (2) ------- EM Shotgun > --- INVENTORY (15) --- Subdweller Power Source Light Treads Subdweller Monowheel Small Storage Unit Subdweller Optics Seismic Detector Hardened Light Armor Plating Hardened Light Armor Plating Hardened Light Armor Plating Hacking Suite Trap Extractor (0/4) Grenade Launcher Peak State ------------ > --- POWER ------------ Subdweller Power Source > --- PROPULSION ------- Light Treads Light Treads > --- UTILITY ---------- Large Storage Unit Seismic Detector > --- WEAPON ----------- EM Shotgun Assault Rifle > --- INVENTORY -------- Ion Engine Light Treads Subdweller Monowheel Small Storage Unit Subdweller Optics Seismic Detector Hardened Light Armor Plating Hardened Light Armor Plating Hardened Light Armor Plating Hacking Suite Trap Extractor EM Shotgun EM Shotgun EM Shotgun Grenade Launcher [Rating: 11] Favorites ----------- Power Light Ion Engine Engine Light Ion Engine Propulsion Light Treads Treads Light Treads Utility Seismic Detector Device Seismic Detector Storage Large Storage Unit Weapon Assault Rifle Energy Gun EM Shotgun Ballistic Gun Assault Rifle Launcher Grenade Launcher Build | -11 -10 -10 ------- Run | Yrd Mat Sub Slots Evolved . | . . . Power . | . . . Propulsion . | . . . Utility . | . . . Weapon . | . . . Parts Attached 15 | 7 1 7 Power 3 | 1 . 2 Engine 3 | 1 . 2 Core . | . . . Reactor . | . . . Propulsion 2 | 2 . . Treads 2 | 2 . . Leg . | . . . Wheel . | . . . Hover . | . . . Flight . | . . . Utility 3 | 2 1 . Device 1 | 1 . . Storage 2 | 1 1 . Processor . | . . . Hackware . | . . . Protection . | . . . Artifact . | . . . Weapon 7 | 2 . 5 Energy Gun 4 | . . 4 Energy Cannon . | . . . Ballistic Gun 2 | 2 . . Ballistic Cannon . | . . . Launcher 1 | . . 1 Special Weapon . | . . . Impact Weapon . | . . . Slashing Weapon . | . . . Piercing Weapon . | . . . Special Melee Weapon . | . . . Unidentified Prototypes . | . . . Parts Lost 8 | . . 8 Power 1 | . . 1 Propulsion 2 | . . 2 Utility 1 | . . 1 Weapon 4 | . . 4 Highest Loss Streak 8 | . . 8 To Critical Strikes . | . . . Average Backups 11 | 3 10 14 Power . | . 1 1 Propulsion 1 | 2 1 1 Utility 5 | . 5 7 Weapon 3 | . 2 4 Tool/Special . | . . . Unused Backups 21 | . 11 10 Power . | . . . Propulsion 6 | . 4 2 Utility 13 | . 6 7 Weapon 2 | . 1 1 Tool/Special . | . . . Average Slot Usage (%) 99 | . 100 98 Engine 13 | . 14 13 Treads 27 | . 28 27 Device 13 | . 14 13 Storage 14 | . 14 14 Energy Gun 3 | . . 8 Ballistic Gun 22 | . 28 15 Launcher 1 | . . 3 Peak Build Rating 11 | 7 9 11 Average Rating 8 | 5 7 9 On Entrance 5 | . 7 9 Naked Turns . | . . . Heaviest Build 32 | 12 27 32 Greatest Support 40 | 40 40 40 Greatest Overweight (x) . | . . . Average Overweight (x) . | . . . Largest Inventory Capacity 15 | 8 15 15 Average Capacity 12 | 7 11 15 Most Carried 15 | 7 15 15 Average Carried 11 | 4 10 14 Final Capacity 15 | 8 15 15 Final Carried 15 | 7 15 12 Class Distribution -------------------- 100% | Mutant Dominant Class ---------------- Mutant | -10/Materials Mutant | -10/Subcaves Resources | -11 -10 -10 ----------- Run | Yrd Mat Sub Matter Collected 523 | 302 133 88 Remotely . | . . . Salvage Created 619 | 155 367 97 Parts 47 | 11 28 8 Haulers Intercepted 2 | . 2 . Recyclers Shooed 1 | . 1 . Parts Field Recycled . | . . . Retrieved Matter . | . . . Parts Self-Destructed 14 | . . 14 Prevented . | . . . Kills | -11 -10 -10 ------- Run | Yrd Mat Sub Combat Hostiles Destroyed 6 | . 4 2 Guns 6 | . 4 2 Classes Destroyed 8 | 2 5 1 Tunneler 3 | 3 . . Hauler 2 | . 2 . Recycler 2 | 1 1 . Operator 1 | . 1 . Watcher 1 | . 1 . Swarmer 1 | . 1 . Grunt 3 | . 3 . Subdweller 2 | . . 2 Best Kill Streak 4 | 4 2 1 Combat Bots Only 2 | . 2 1 Max Kills in Single Turn 1 | 1 1 1 Gunslinging . | . . . Exploded . | . . . Melee . | . . . Uniques/NPCs Destroyed . | . . . Combat | -11 -10 -10 -------- Run | Yrd Mat Sub Hostile Shots Fired 51 | . 14 37 Missed 11 | . 5 6 Hits 40 | . 9 31 Projectile 40 | . 9 31 Critical Strikes 2 | . . 2 Damage Taken 928 | . 100 828 Core 263 | . 32 231 Absorbed by Shields . | . . . Core Remaining (%) 100 | 100 . . Volleys Fired 62 | 8 30 24 Largest 2 | 2 2 2 Hottest 90 | 40 40 90 Shots Fired 115 | 16 60 39 Gun 113 | 16 60 37 Cannon . | . . . Launcher 2 | . . 2 Special . | . . . Kinetic 91 | 16 60 15 Thermal . | . . . Explosive 2 | . . 2 Electromagnetic 22 | . . 22 Robot Hit Streak 30 | 8 12 30 Robot Miss Streak 3 | 1 3 1 Penetration Max . | . . . Secondary Targets 1 | . 1 . Max Gunslinging Chain 1 | . 1 . Shots Hit Robots 82 | 11 36 35 Core Hits 25 | 4 16 5 Critical Kills . | . . . Critical Parts Destroyed . | . . . Critical Strikes . | . . . Melee Attacks . | . . . Impact . | . . . Slashing . | . . . Piercing . | . . . Sneak Attacks . | . . . Combat Hostiles . | . . . Follow-up Attacks . | . . . Damage Inflicted 719 | 133 411 175 Guns 704 | 133 396 175 Cannons . | . . . Explosions . | . . . Melee . | . . . Ramming 15 | . 15 . Kinetic 606 | 133 396 77 Thermal . | . . . Explosive . | . . . Electromagnetic 98 | . . 98 Impact . | . . . Slashing . | . . . Piercing . | . . . Highest Corruption 1 | . 1 1 Average Corruption 1 | . 1 1 Corruption Purged . | . . . Corruption Blocked . | . . . Effects 13 | . 3 10 Message Errors 2 | . . 2 Matter Fused 5 | . . 5 Heat Flow Errors 1 | . . 1 Energy Discharges 2 | . 1 1 Data Loss (minor) 2 | . 1 1 Alerts 1 | . 1 . Overload Shots . | . . . Overflow Damage . | . . . Projectiles . | . . . Explosions . | . . . Melee . | . . . Knockbacks . | . . . Impact . | . . . Kinetic . | . . . Secondary . | . . . Self-Inflicted Damage 20 | . . 20 Shots 1 | . . 1 Rammed 3 | . 3 . Targets Rammed 4 | . 4 . Kicked . | . . . Crushed 1 | . 1 . Highest Temperature 290 | . 9 290 Average Temperature 100 | . 7 119 Received Heat Transfer 597 | . 39 558 Siege Activations . | . . . Martial Activations . | . . . Shielding Activations . | . . . Robots Disrupted . | . . . Combat Hostiles . | . . . Robots Corrupted . | . . . Combat Hostiles . | . . . Parts Fried . | . . . Impact Corruptions . | . . . Robots Melted . | . . . Combat Hostiles . | . . . Parts Melted . | . . . Heat Transferred . | . . . Parts Sabotaged . | . . . Parts Stolen . | . . . Parts Stripped . | . . . Power Chain Reactions . | . . . Alert | -11 -10 -10 ------- Run | Yrd Mat Sub Maximum Alert Level . | . . . Low Security (%) 100 | 100 100 . Level 1 . | . . . Level 2 . | . . . Level 3 . | . . . Level 4 . | . . . Level 5 . | . . . High Security . | . . . Max Security . | . . . Peak Influence 50 | 10 50 . Initial . | . . . Average 7 | 2 8 . Influence Increases 214 | 20 194 . Destroy 0b10 Robot/C 80 | . 80 . Destroy 0b10 Robot/NC 45 | 20 25 . Destroy Leader 26 | . 26 . Successful Hack 33 | . 33 . Lose Combat Pursuer 30 | . 30 . Influence Decreases 214 | 20 186 8 Entered New Map 4 | . . 4 Time Decay 210 | 20 186 4 Squads Dispatched 3 | . 3 . Investigation 1 | . 1 . Extermination . | . . . Reinforcement 2 | . 2 . Assault . | . . . Garrison . | . . . Intercept . | . . . Searches Triggered . | . . . Construction Impeded . | . . . Haulers Reinforced . | . . . Active Scanning Responses . | . . . Cargo Convoy Interrupts . | . . . Stealth | -11 -10 -10 --------- Run | Yrd Mat Sub Distress Signals 2 | . 2 . Communications Jammed . | . . . Distress Signals . | . . . Times Spotted 17 | . 14 3 Peak Tracking Total 4 | . 4 1 Tactical Retreats 1 | . 1 . Traps | -11 -10 -10 ------- Run | Yrd Mat Sub Traps Triggered 2 | . 2 . Indirectly . | . . . Trap Hack Attempts . | . . . Triggered . | . . . Disarmed . | . . . Reprogrammed . | . . . Reused . | . . . Traps Extracted . | . . . Installed . | . . . Triggered . | . . . Machines | -11 -10 -10 ---------- Run | Yrd Mat Sub Machines Disabled . | . . . Max in Single Turn . | . . . Machines Repaired . | . . . Machines Dismantled . | . . . Machines Sabotaged . | . . . Overloaded Fab Kills . | . . . Hacking | -11 -10 -10 --------- Run | Yrd Mat Sub Machines Accessed 6 | . 6 . Terminals 6 | . 6 . Fabricators . | . . . Repair Stations . | . . . Recycling Units . | . . . Scanalyzers . | . . . Garrison Access . | . . . Total Hacks 18 | . 18 . Successful 10 | . 10 . Failed 7 | . 7 . Catastrophic . | . . . Database Lockouts 1 | . 1 . Manual 15 | . 15 . Terminals 18 | . 18 . Fabricators . | . . . Repair Stations . | . . . Recycling Units . | . . . Scanalyzers . | . . . Garrison Access . | . . . Terminal Hacks 5 | . 5 . Robot Analysis 1 | . 1 . Prototype ID Bank 1 | . 1 . Alert Level 1 | . 1 . Locate Traps 1 | . 1 . Dispatch Records 1 | . 1 . Fabricator Hacks . | . . . Repair Station Hacks . | . . . Recycling Unit Hacks . | . . . Scanalyzer . | . . . Garrison Access Hacks . | . . . Unauthorized Hacks 5 | . 5 . Terminals 5 | . 5 . Skim 5 | . 5 . Fabricators . | . . . Repair Stations . | . . . Recycling Units . | . . . Scanalyzers . | . . . Garrison Access . | . . . Data Cores Recovered . | . . . Used . | . . . Hacking Detections 5 | . 5 . Full Trace Events . | . . . Feedback Events . | . . . Feedback Blocked . | . . . Robot Schematics Acquired . | . . . Robots Built . | . . . Authchips . | . . . Time . | . . . Total Robot Build Rating . | . . . Part Schematics Acquired . | . . . Parts Built . | . . . Authchips . | . . . Time . | . . . Total Part Build Rating . | . . . Parts Repaired . | . . . Time . | . . . Parts Recycled . | . . . Recycled Matter . | . . . Retrieved Matter . | . . . Retrieved Components . | . . . Parts Scanalyzed . | . . . Part Schematics Acquired . | . . . Parts Damaged . | . . . Bothacking | -11 -10 -10 ------------ Run | Yrd Mat Sub Used RIF Installer . | . . . Robots Hacked . | . . . Non-combat . | . . . Combat . | . . . Robot Hacks Applied . | . . . Relay Couplers Released . | . . . Fabnet Peak Effective % . | . . . Robots Rewired . | . . . Allies Hacked . | . . . Hacks Repelled . | . . . Allies | -11 -10 -10 -------- Run | Yrd Mat Sub Total Allies . | . . . Largest Group . | . . . Highest-Rated Group . | . . . Highest-Rated Ally . | . . . Total Orders . | . . . Ally Attacks . | . . . Total Damage . | . . . Kills . | . . . Allies Corrupted . | . . . Allies Melted . | . . . Intel | -11 -10 -10 ------- Run | Yrd Mat Sub Active Infowar (turns) 1865 | 28 1042 795 Seismic 1865 | 28 1042 795 Robot Analysis Total 1 | . 1 . Derelict Logs Recovered 1 | . . 1 Drone Launches . | . . . Drone Recoveries . | . . . Exploration | -11 -10 -10 ------------- Run | Yrd Mat Sub Turns Passed 1958 | 111 1042 805 Spaces Moved 1063 | 48 577 438 Core 4 | 4 . . Treads 1059 | 44 577 438 Legs . | . . . Wheels . | . . . Hover . | . . . Flight . | . . . Fastest Speed 50 | 50 160 160 Average Speed 159 | 150 160 160 Slowest Speed 160 | 160 160 160 Overloaded Moves . | . . . Propulsion Burnouts . | . . . Robots Hopped . | . . . Potential Cave-ins . | . . . Cave-ins Triggered . | . . . Exploration Rate (%) 42 | 4 95 29 Regions Visited 2 Branch Regions 1 Pre-discovered Areas 2 | . 1 1 Known Exits Taken . | . . . Unknown Exits Taken 2 | 1 1 . Scrap Searched . | . . . Spaces Dug . | . . . Terrain Destroyed 3 | . . 3 Melee . | . . . Projectile . | . . . AOE 3 | . . 3 Terrain Rammed . | . . . Walls Destroyed . | . . . Machines Disabled . | . . . Actions | -11 -10 -10 --------- Run | Yrd Mat Sub Total 1223 | 69 650 504 Wait 35 | . 6 29 Move 1061 | 47 576 438 Hop . | . . . Pick Up 28 | 7 19 2 Fast Attach 7 | 7 . . Attach 4 | . 1 3 Detach 1 | . 1 . Swap 6 | . 1 5 Drop 15 | . 12 3 Fire 62 | 8 30 24 Melee . | . . . Ram . | . . . Kick . | . . . Crush 4 | . 4 . Escape Stasis . | . . . Rewire . | . . . Trap . | . . . Miscellaneous . | . . . Route ------- -11/Scrapyard -10/Materials (discovered 5 exits: [*Mat x3] / [*Min] / [*Sub]) -10/Subcaves (discovered 4 exits: *Mat x2 / Rec / [*Scr]) History --------- Turn | Location | Event 41 | -11/Scrapyard | Discovered new exit (range 15) 112 | -11/Scrapyard | Entered Materials 113 | -10/Materials | Met a group of wandering Federalists 210 | -10/Materials | Lost 5 allies 239 | -10/Materials | Discovered new exit (range 5) 303 | -10/Materials | Build established: Mutant 326 | -10/Materials | Discovered new exit (range 6) 530 | -10/Materials | Discovered new exit (range 14) 545 | -10/Materials | Discovered new exit (range 7) 723 | -10/Materials | Discovered new exit (range 15) 733 | -10/Materials | Central database locked down 819 | -10/Materials | Learned location of Recycling (-9) 895 | -10/Materials | Learned location of 2 exits from Subcaves 963 | -10/Materials | Learned Storage non-interactive machine intel 1069 | -10/Materials | Learned Storage security intel 1154 | -10/Materials | Entered Subcaves 1155 | -10/Subcaves | Continued accompanying wandering Federalists (1) 1155 | -10/Subcaves | Approached by a straggling Scientist 1155 | -10/Subcaves | Identified exit to Materials 1156 | -10/Subcaves | Identified exit to Recycling 1163 | -10/Subcaves | Learned location of Zion (-6) 1163 | -10/Subcaves | Met a Zionite searching for "candidates" 1367 | -10/Subcaves | Shifting Twisted Machinery released Sub. Machine Gun 1395 | -10/Subcaves | Wandering Federalist uncovered a shortcut to Scraptown 1448 | -10/Subcaves | Shifting Twisted Machinery released Riot Gun 1900 | -10/Subcaves | Disturbed a concealed Subdweller 1936 | -10/Subcaves | Core integrity fell below 50% 1952 | -10/Subcaves | Core integrity fell below 20% 1959 | -10/Subcaves | Destroyed by ZS-HUB(R) with Subdweller Beam Cannon Last Messages --------------- QI-VYO(c): "I think it's somewhere west of here" 01816_ System corrupted: Component data lost. QI-VYO(c): "I think it's somewhere west of here" 01843_ Sub. Power Source shoots sparks and powers down. QI-VYO(c): "I think it's somewhere west of here" 01869_ System corrupted: Matter fused (-8). 01896_ SJWKFOEV8Y FUFBO4WXJREX6 01900_ ZS-HUB(R) angrily emerges from the Twisted Machinery. 01911_ Critical hit (Meltdown: +300). QI-VYO(c): "I think it's somewhere west of here" 01921_ System corrupted: Matter fused (-9). 01925_ Lgt. Treads destroyed. 01929_ Assault Rifle destroyed. 01933_ Ion Engine destroyed. 01935_ EM Shotgun destroyed. 01943_ Lgt. Treads destroyed. 01949_ Seismic Detector destroyed. 01955_ EM Shotgun destroyed. Map ----- +----------------------------------------------------+ | ????????????????? % % ##?## """ ##? | | ??????????????????## % % ##### "" ## | | ???????????????????##% ##### ## # " | | ????????????????????## #????# ### "" | | ?????????????????????#????? ## ## " " | | ????????????????????????? ## ## # # " | | ????????????????????????# #### #?# ######### " | | ????????????????????????#????##??##???????# | | ???????????????????????????????????????? | | ??????????????????????????????????????? ### | | ?????????????????????????????????????? #?## | | ????????????????????????????????????? #??## | | ???????????????????????????????????? #????# | | ???????????????????????????????????? ###??#### | | ???????????????????????????????????? #?????# | | ????????????????????????????????????? ???#### | | ???????????????????????????????????##??????# | | ??????????????????????????????????## #????## | | ??????????????????????????????????# ##### | | ???????????????????????????????????# ## | | ????????????????????????????????????## #### | | ???????????????????????????##????????## ##??## | | ????????????????????????###;??????????# #????# | | ???????????????????????## ####????##### ##????# | | ???????????????????????# ##;### # # # # # # | | ??????????????????# #$#R@ ### # | | ???????????????????# | | ??????????????????#$&<##< ##### # # # | | ??????????????????# ??# c #???#######? # | | ??????????????????????#### ## #???????# | | ?????????????????????????####;## ? | | ?????????????????????????????### | | ??????????????????????????????? ##### ## # | | ?????????????????????????????? ##????##????? ? | | ?????????????????????????????#####????????????? ?? | | ?????????????????????????????????????????????????? | | ?????????????????????????????????????????????????? | | ?????????????????????????????????????????????????? | | ?????????????????????????????????????????????????? | | ?????????????????????????????????????????????????? | | ?????????????????????????????????????????????????? | | ?????????????????????????????????????????????????? | | ?????????????????????????????????????????????????? | | ?????????????????????????????????????????????????? | | ?????????????????????????????????????????????????? | | ?????????????????????????????????????????????????? | | ?????????????????????????????????????????????????? | | ?????????????????????????????????????????????????? | | ?????????????????????????????????????????????????? | | ?????????????????????????????????????????????????? | +----------------------------------------------------+ Best States ------------- Heat Dissipation 25 Energy Generation 15 Energy Capacity 250 Matter Stores 300 Matter Capacity 300 Sight Range 16 Terrain Scan Density 10 Evasion (%) 40 Recoil Reduction 2 Item Schematics ----------------- None Robot Schematics ------------------ None Fabricated ------------ Nothing Repaired ---------- Nothing Alien Tech Used ----------------- None Achievements -------------- None Challenges ------------ None Game ------ Seed GuidanceUltimateRailcannon Manual? 0 Play Time 00:13:30 Cumulative 82.9 hours Start 2025.07.16 @ 17:07:17 End 2025.07.16 @ 17:17:05 Sessions 1 Manual Loads 0 Difficulty Rogue Special Mode None Game No. 79 Rogue 79 Adventurer 0 Explorer 0 Win Type - Total 1 Types 1/0/0/0/0/0/0/0/0/0 Lore% 44 Gallery% 43 Achievement% 45 Wizard Run 0 Options --------- Layout 1 ASCII 0 Keyboard 1 Movement Arrows Keybinds 0 Fullscreen 1 Font 24/Smallcaps Map View 50x40 Zoom Use 0% Tactical HUD 1 Map Filters NONE Filters NONE Steam 1 RUN: d5f1e431-08b7-4c42-827d-43e3e79217d8